{"text_format":"1","workbook":"xlsx","n_sheets":15,"sheets":["FFGym Clubs","FedA Tumbling avant","FedA Tumbling arrière","FedA MT - MT","ListeDiffSol","ListeClubs 95 ","liste","Activer Macro 97-2003","Activer Macro2007","Explications","Version","MessageErreurO365","fiche engagement","FED C - dif mini tramp","Fed C - dif tumbling"],"not_rendered":{"charts":0,"images":9,"macros":1,"external_links":1,"defined_names":71,"comments":0,"pivot_tables":0},"unopened":[],"bounds":{"document_bytes":16777216,"sheet_cells":100000,"rows_first":2000,"rows_last":500,"rows_between":2000,"halvings":0,"cell_chars":16384,"cell_head_chars":4096},"cells_cut":0,"cells_raw":0,"read":"whole","date_system":"1900"}

{"sheet":"FFGym Clubs","index":0,"n_rows":309,"n_cols":4,"rows_kept":309,"cut":false,"hidden":true,"merged":[]}
["Nom","Number","Numéro d'affiliation","Ville"]
[]
["1-CLUB INTROUVABLE ",1,"00000.000","INCONNUE"]
["A S C A",2,"52072.054","LA CHAPELLE ST-AUBIN"]
["A S COURONNAISE ",3,"28076.027","PETIT COURONNE"]
["A.S.P.C. GYM'SPORT",4,"52049.082","LES PONTS DE CE"]
["ABBEVILLE GYM",5,"32080.065","ABBEVILLE"]
["AC CHAPELAIN",6,"52044.061","LA CHAPELLE SUR ERDRE"]
["ACR GYM",7,"24041.061","ROMORANTIN"]
["ACRO VOLTIGE",8,"52085.103","LUCON"]
["ACTI' GYM CAVAILLON",9,"93084.135","CAVAILLON"]
["AG DE LA MONTAGNE",10,"52044.047","LA MONTAGNE"]
["AGM GYM VESOUL",11,"27070.055","VESOUL"]
["ALBONAISE GYMNASTIQUE DE FRANCONVILLE",12,"11095.301","FRANCONVILLE"]
["ALERTE SAINT GEORGES SUR CHER",13,"24041.063","SAINT GEORGES SUR CHER"]
["ALLIANCE TOURQUENNOISE DE GYMNASTIQUE",14,"32059.254","TOURCOING"]
["AMICALE DE VILLENEUVE LA GARENNE - COURS MUNICIPAL DE GYMNASTIQUE DE VILLENEUVE",15,"11092.251","VILLENEUVE LA GARENNE"]
["AMICALE LAIQUE BILLERE",16,"75064.103","BILLERE"]
["AMICALE LAIQUE DIGOIN",17,"27071.031","DIGOIN"]
["AMICALE LAIQUE JULES FERRY",18,"84001.021","AMBERIEU EN BUGEY"]
["AMICALE LAIQUE PARAY",19,"27071.038","PARAY LE MONIAL"]
["ANCIENNE ESPERANCE ANGOULEME",20,"75016.011","ANGOULÊME"]
["ANGERS GYMNASTIQUE",21,"52049.077","ANGERS"]
["ASS. SPORTIVE FOURCHAMBAULT",22,"27058.063","FOURCHAMBAULT"]
["ASS. SPORTIVE GUERIGNY URZY",23,"27058.005","GUERIGNY"]
["ASS.SPORT.UNION CHEMINOTTE",24,"27089.075","MIGENNES"]
["ASSOCIATION AMICALE SPORTIVE SARCELLES",25,"11095.317","SARCELLES"]
["ASSOCIATION AUXONNAISE DE GYM",26,"27021.077","AUXONNE"]
["ASSOCIATION EN FORM' SECTION GYM",27,"75079.097","MAUZE SUR LE MIGNON"]
["ASSOCIATION GRAINES D'ACROBATES",28,"03973.001","SAINT-LAURENT DU MARONI"]
["ASSOCIATION GYMNIQUE  LOUDUNAISE",29,"75086.034","LOUDUN"]
["ASSOCIATION GYMNIQUE DE BALAGNE",30,"94020.012","L'ILE  ROUSSE"]
["ASSOCIATION GYMNIQUE DE CESSON VERT ST DENIS",31,"11077.130","CESSON VERT SAINT DENIS"]
["ASSOCIATION GYMNIQUE DE CHOISY LE ROI",32,"11094.563","CHOISY LE ROI"]
["ASSOCIATION GYMNIQUE DE LATTES-MAURIN",33,"76034.003","MAURIN"]
["ASSOCIATION GYMNIQUE DE L'ORGE",34,"11091.122","SAINT MICHEL SUR ORGE"]
["ASSOCIATION GYMNIQUE DE PLOUGASTEL",35,"53029.086","PLOUGASTEL"]
["ASSOCIATION GYMNIQUE LA FAMECKOISE",36,"44057.014","FAMECK"]
["ASSOCIATION GYMNIQUE PERPIGNANAISE",37,"76066.053","PERPIGNAN"]
["ASSOCIATION GYMNIQUE REMOISE",38,"44051.048","REIMS"]
["ASSOCIATION MUNICIPALE GYMNIQUE ARQUES",39,"32062.139","ARQUES"]
["ASSOCIATION SPORTIVE AMBARESIENNE GYM",40,"75033.056","AMBARES"]
["ASSOCIATION SPORTIVE DE SARREGUEMINES",41,"44057.032","SARREGUEMINES"]
["ASSOCIATION SPORTIVE ET CULTURELLE PESSAC ALOUETTE",42,"75033.010","PESSAC ALOUETTE"]
["ASSOCIATION SPORTIVE FLEURANCE GYM",43,"76032.084","FLEURANCE"]
["ASSOCIATION SPORTIVE GYMNASTIQUE TRAMPOLINE DE ROGNAC",44,"93013.113","ROGNAC"]
["ASSOCIATION SPORTIVE GYMNIQUE VILLENAVE D'ORNON",45,"75033.014","VILLENAVE D'ORNON"]
["ASSOCIATION SPORTIVE ILLACAISE",46,"75033.069","ST JEAN D'ILLAC"]
["ASSOCIATION SPORTIVE LE HAILLAN GYM",47,"75033.018","LE HAILLAN"]
["ASSOCIATION SPORTIVE LES TAMARIS",48,"24045.068","SAINT JEAN DE BRAYE"]
["ASSOCIATION SPORTIVE MONTFERRANDAISE",49,"84063.002","CLERMONT-FD"]
["ASSOCIATION TRAMPOGYM SAINT-PAUL",50,"04974.024","SAINT-PAUL"]
["ASTUS SOISY SOUS MONTMORENCY",51,"11095.307","SOISY SOUS MONTMORENCY"]
["AVANT GARDE DE TERVES",52,"75079.022","TERVES"]
["AVANT GARDE DU MANS",53,"52072.041","LE MANS"]
["AVANT GARDE TAIN TOURNON",54,"84026.008","TAIN TOURNON"]
["AVENIR COLMAR",55,"44068.028","COLMAR"]
["AVENIR DU HOULME",56,"28076.016","LE HOULME"]
["AVENIR EVIANAIS",57,"84074.041","EVIAN"]
["AVENIR GESSIEN DE THOIRY",58,"84001.062","THOIRY"]
["AVENIR GYMNIQUE ORANGEOIS",59,"93084.132","ORANGE"]
["AVENIR LA REDONNAISE GYMNASTIQUE",60,"53035.001","REDON"]
["BASTIA TEAM GYM",61,"94020.022","BASTIA"]
["BEAUSEJOUR LES SABLES",62,"52085.018","LES SABLES D'OLONNE"]
["BELFORT GYMNASTIQUE",63,"27090.027","BELFORT"]
["BIARRITZ GYMNASTIQUE CLUB",64,"75064.132","BIARRITZ"]
["BOLLENE GYMNASTIQUE",65,"93084.138","BOLLENE"]
["BROCELI'GYM MONTFORT",66,"53035.167","MONTFORT SUR MEU"]
["CABRI MELLOIS",67,"75079.037","MELLE"]
["CARCES GYM",68,"93083.101","CARCES"]
["CERCLE D EDUCATION PHYSIQUE GYM POITIERS",69,"75086.017","POITIERS"]
["CERCLE JULES FERRY",70,"53035.002","SAINT-MALO"]
["CERCLE PASTEUR MONTARGIS",71,"24045.036","MONTARGIS"]
["CERCLE PAUL BERT",72,"53035.009","RENNES"]
["CERCLE SPORTIF LAIC",73,"27071.021","SAINT VALLIER"]
["CLOCHETTE L'ISLOISE",74,"76032.082","L'ISLE JOURDAIN"]
["CLUB ATHLETIQUE BEGLAIS",75,"75033.002","BEGLES"]
["CLUB DE GYMNASTIQUE DE HERMES",76,"32060.086","HERMES"]
["CLUB DE GYMNASTIQUE DE SERIGNAN",77,"76034.128","SERIGNAN"]
["CLUB DE GYMNASTIQUE ST-ANDREEN",78,"04974.014","SAINT-ANDRE"]
["CLUB DEPARTEMENTAL DE GYMNASTIQUE GIRONDE",79,"75033.074","BORDEAUX"]
["CLUB GROUP'OMNISPORT de ST JULIEN L'ARS",80,"75086.031","SAINT JULIEN L'ARS"]
["CLUB GYMNIQUE DE BONNEVEINE MARSEILLE",81,"93013.019","MARSEILLE"]
["CLUB GYMNIQUE DE LASSIGNY",82,"32060.068","LASSIGNY"]
["CLUB GYMNIQUE DE NEUILLY SUR MARNE",83,"11093.341","NEUILLY SUR MARNE"]
["CLUB GYMNIQUE DE SAINT GINIEZ",84,"93013.018","MARSEILLE"]
["CLUB GYMNIQUE DE SAINT PIERRE REUNION",85,"04974.012","SAINT-PIERRE"]
["CLUB GYMNIQUE ERMONT",86,"11095.300","ERMONT"]
["CLUB GYMNIQUE LANGROIS",87,"44052.062","LANGRES"]
["CLUB GYMNIQUE RILLIEUX",88,"84069.051","RILLIEUX LA PAPE"]
["CLUB L'ISLOIS DE GYMNASTIQUE",89,"93084.064","L ISLE SUR LA SORGUE"]
["CLUB MARIGNANAIS DES SPORTS DE GYMNASTIQUE",90,"93013.001","MARIGNANE"]
["CLUB OLYMPIQUE MULTISPORTS BAGNEUX",91,"11092.202","BAGNEUX"]
["CLUB SPORTIF ARTISTIQUE DE LA DEFENSE - CHATELLERAULT",92,"75086.009","CHATELLERAULT"]
["CLUB SPORTIF BETTON",93,"53035.073","BETTON"]
["CLUB SPORTIF DE MARDEUIL",94,"44051.033","MARDEUIL"]
["CLUB SPORTIF ET ATHLETIQUE DU KREMLIN BICETRE",95,"11094.567","KREMLIN BICETRE"]
["CLUB SPORTIF MUNICIPAL DE GYMNASTIQUE EPINAY SOUS SENART",96,"11091.104","EPINAY SOUS SENART"]
["CLUB SPORTIF MUNICIPAL LE PECQ",97,"11078.062","LE PECQ"]
["CLUB SPORTIF VILLEPINTE GYMNASTIQUE",98,"11093.363","VILLEPINTE"]
["COGLAIS GYM",99,"53035.170","MAEN ROCH"]
["DEFENSE AMBLAINVILLE",100,"32060.014","AMBLAINVILLE"]
["DINARD-GYM",101,"53035.120","DINARD"]
["E A TESSOUALLE",102,"52049.074","LA TESSOUALLE"]
["E. S. M. G-O",103,"28076.067","GONFREVILLE L.ORCHER"]
["E.S.M. GYM CHALLANS",104,"52085.048","CHALLANS"]
["ELAN GYMNIQUE DE BLAGNAC",105,"76031.049","BLAGNAC"]
["ELAN GYMNIQUE DE SEVRAN",106,"11093.347","SEVRAN"]
["ELAN MORTAGNAIS",107,"52085.037","MORTAGNE SUR SEVRE"]
["ELGAR GYM",108,"75064.116","ST JEAN DE LUZ"]
["ELITE GYM VILLEFRANCHE",109,"84069.011","VILLEFRANCHE SUR SAÔNE"]
["ENFANCE ET GYMNASTIQUE DE DIEUZE",110,"44057.113","DIEUZE"]
["ENFANTS DU REVARD AIX LES BAINS",111,"84073.037","AIX LES BAINS"]
["ENTENTE FAMILIALE OMNISPORT ROYALLIEU COMPIEGNE",112,"32060.031","COMPIEGNE"]
["ENTENTE GYMNIQUE DEODATIENNE",113,"44088.092","SAINT DIE DES VOSGES"]
["ENTENTE GYMNIQUE ETAMPES - SECTION GYMNASTIQUE",114,"11091.105","ETAMPES"]
["ENTENTE GYMNIQUE GANNATOISE",115,"84003.077","GANNAT"]
["ENTENTE GYMNIQUE LA ROSE BLEUE",116,"76030.042","BAGNOLS SUR CEZE"]
["ENTENTE SPORTIVE DE BRUGES",117,"75033.012","BRUGES"]
["ENTENTE SPORTIVE FALAISIENNE GYMNASTIQUE",118,"28014.193","FALAISE"]
["ESPERANCE AUDINCOURT",119,"27025.010","AUDINCOURT"]
["ESPERANCE DE VIGNEUX",120,"11091.118","VIGNEUX"]
["ESPERANCE D'OISSEL",121,"28076.024","OISSEL"]
["ESPERANCE MONTATAIRE",122,"32060.013","MONTATAIRE"]
["ESPERANCE ST LEGER GYMNASTIQUE",123,"27058.006","ST LEGER DES VIGNES"]
["ESPERANCE ST-GERMANOISE",124,"84003.053","ST GERMAIN DES FOSSES"]
["ETOILE GOUSSAINVILLOISE",125,"11095.303","GOUSSAINVILLE"]
["ETOILE GYMNIQUE DE COLOMIERS",126,"76031.035","COLOMIERS"]
["ÉTOILE GYMNIQUE ONZAINOISE ",127,"24041.082","VEUZAIN SUR LOIRE"]
["ETOILE PARTHENAISIENNE",128,"75079.040","PARTHENAY"]
["ETOILE SAINT AMANDOISE",129,"24018.003","SAINT AMAND MONTROND"]
["ETOILE SPORTIVE GYMNASTIQUE CHATEAU LANDON",130,"11077.150","CHATEAU LANDON"]
["ETOILE SPORTIVE SANVIGNES",131,"27071.039","SANVIGNES"]
["ETOILE SPORTIVE ST MARCELLOISE SUD MINERVOIS",132,"76011.015","SAINT MARCEL"]
["EVASION SPORTIVE ET CULTURELLE PAR L'ANIMATION ET LES LOISIRS GYMNIQUES",133,"28076.177","ROUEN"]
["EVOLUTION MORTEAU",134,"27025.014","MORTEAU"]
["FOIX ATHLETIC CLUB",135,"76009.001","FOIX"]
["FONTENILLES GYM",136,"76031.094","FONTENILLES"]
["GINNASTICA CORSU DI U PAESE AIACCINU",137,"94020.021","AJACCIO"]
["GIVRE EN MAI",138,"75079.024","SAINT SAUVEUR DE GIVRE EN MAI"]
["GRENOBLE GYM",139,"84038.013","GRENOBLE"]
["GROUPEMENT GYMNIQUE HAVRE BANLIEUE",140,"28076.073","LE HAVRE"]
["GYM 2000 LA FARLEDE",141,"93083.088","LA FARLEDE"]
["GYM AGRES VELIZY",142,"11078.011","VELIZY"]
["GYM CLUB DE LECOUSSE",143,"53035.117","LECOUSSE"]
["GYM CLUB DU PERREUX",144,"11094.584","LE PERREUX"]
["GYM CLUB NUEIL LES AUBIERS",145,"75079.053","NUEIL LES AUBIERS"]
["GYM CLUB POSSESSION",146,"04974.008","LA POSSESSION"]
["GYM CLUB SUZERAIN",147,"52072.011","LA SUZE SUR SARTHE"]
["GYM et RYTHME CROLLES",148,"84038.106","CROLLES"]
["GYM L AIGLE",149,"28061.380","L AIGLE"]
["GYM OLERON",150,"75017.051","SAINT PIERRE D OLERON"]
["GYM OLIVET",151,"24045.038","OLIVET"]
["GYM' PARIS 15",152,"11075.046","PARIS"]
["GYM SPORT PAM",153,"44054.005","PONT A MOUSSON"]
["GYM'CLUB RUTHENOIS",154,"76012.056","RODEZ"]
["GYMNASE MUNICIPAL DE ST VALLIER",155,"84026.004","ST VALLIER"]
["GYMNASTE CLUB DE MANDELIEU LA NAPOULE",156,"93006.076","MANDELIEU LA NAPOULE"]
["GYMNASTIQUE CLUB DE CHATEAU GONTIER",157,"52053.091","CHATEAU GONTIER"]
["GYMNASTIQUE CLUB DE WISSOUS",158,"11091.131","WISSOUS"]
["GYMNASTIQUE CLUB LA ROCHE SUR YON",159,"52085.099","ROCHE SUR YON"]
["GYMNASTIQUE CLUB MENNECY",160,"11091.152","MENNECY"]
["GYMNASTIQUE SODOBRIENNE DE SUEVRES",161,"24041.077","SUEVRES"]
["GYMNASTIQUE SPORTIVE CHARTRES DE BRETAGNE",162,"53035.083","CHARTRES DE BRETAGNE"]
["GYMNASTIQUE SPORTIVE DE GAP",163,"93005.082","GAP"]
["GYMNASTIQUE SPORTIVE ETOILE - MONTIVILLIERS",164,"28076.086","MONTIVILLIERS "]
["HEGAL-EGIN",165,"75064.126","ANGLET"]
["HENIN GYM",166,"32062.201","HENIN-BEAUMONT"]
["HIRONDELLES TROYES GYMNIQUE",167,"44010.010","TROYES"]
["HYERES GYM",168,"93083.031","HYERES"]
["ILETS SPORTS MONTLUCONNAIS",169,"84003.031","MONTLUÇON"]
["IMPULSION GYM",170,"75079.088","ST MARTIN DE BERNEGOUE"]
["INDEPENDANTE COMTOISE BESANCON GYMNASTIQUE",171,"27025.008","BESANÇON"]
["INFINITY GYMNASTICS VAL D'EUROPE",172,"11077.180","SERRIS"]
["ISSOLDUNOISE",173,"24036.004","ISSOUDUN"]
["J3 SPORTS AMILLY GYMNASTIQUE",174,"24045.058","AMILLY"]
["JARNAC SPORTS GYMNASTIQUE",175,"75016.004","JARNAC"]
["JEAN ZAY WATTRELOS",176,"32059.182","WATTRELOS"]
["JEUNE CRAN CHEVANCEAUX",177,"75017.066","CHEVANCEAUX"]
["JEUNE FRANCE DE L ABSIE",178,"75079.039","L'ABSIE"]
["JEUNESSE LAIQUE REPUBLICAINE VILLENEUVE/LOT",179,"75047.127","VILLENEUVE/LOT"]
["KAN-KOUROU",180,"03973.002","KOUROU"]
["KEWENN GYMNASTIQUE",181,"53056.160","QUEVEN"]
["L OLYMPIQUE GRANDE SYNTHE",182,"32059.098","GRANDE SYNTHE"]
["LA BELLERIVOISE",183,"84003.024","BELLERIVE SUR ALLIER"]
["LA BIGOURDANE TARBES",184,"76065.023","TARBES"]
["LA BLESOISE",185,"24041.030","BLOIS"]
["LA BOURBONNAISE",186,"84003.032","MOULINS"]
["LA BRESSAUDE",187,"44088.107","LA BRESSE"]
["LA CELLE SAINT CLOUD GYM",188,"11078.003","LA CELLE SAINT CLOUD"]
["LA CHAMPIGNEULLAISE",189,"44054.118","CHAMPIGNEULLES"]
["LA CHAUMONTAISE",190,"44052.025","CHAUMONT"]
["LA COGNACAISE",191,"75016.003","COGNAC"]
["LA DINANNAISE",192,"53022.014","DINAN"]
["LA FONTENAISIENNE",193,"52085.013","FONTENAY LE COMTE"]
["LA FRATERNELLE",194,"28027.042","LOUVIERS"]
["LA FRONTIERE DE REMIREMONT",195,"44088.047","REMIREMONT"]
["LA GAULOISE MOZAC",196,"84063.014","MOZAC"]
["LA JEANNE D'ARC DE MAURIAC",197,"84015.033","MAURIAC"]
["LA JEANNE D'ARC DE PLOMBIERES",198,"44088.095","PLOMBIERES"]
["LA JEUNESSE BETHUNOISE",199,"32062.192","BETHUNE"]
["LA LEGERE MELINOISE",200,"27070.026","ECHENOZ LA MELINE"]
["LA NIVERNAISE",201,"27058.007","NEVERS"]
["LA PERSEVERANTE",202,"52072.038","LE MANS"]
["LA PERSEVERANTE DE MAROMME",203,"28076.020","MAROMME"]
["LA POSTILLONNE OLYMPIQUE GYMNASTIQUE",204,"11091.108","LONGJUMEAU"]
["LA ROCHEFORTAISE",205,"75017.006","ROCHEFORT SUR MER"]
["LA ROCHELAISE ET FRATERNELLE REUNIES",206,"75017.005","LA ROCHELLE"]
["LA SEREINE GYMNASTIQUE MONTLUEL",207,"84001.063","MONTLUEL"]
["LA VAILLANTE DE LANGON",208,"75033.006","LANGON"]
["LA VAUDOISE GYMNASTIQUE HERICOURT",209,"27070.052","HÉRICOURT"]
["LA VIGILANTE DE NOISY LE SEC",210,"11093.344","NOISY LE SEC"]
["LA VOSGIENNE EPINAL",211,"44088.026","EPINAL"]
["LA VOSGIENNE SOULTZ 1861",212,"44068.055","SOULTZ"]
["LE REVEIL",213,"32062.069","BOULOGNE/MER"]
["LE STADE PESSACAIS UNION CLUB",214,"75033.005","PESSAC"]
["LEGION ST-PIERRE BREST GYM",215,"53029.027","BREST"]
["LEGION VIENNOISE ",216,"84038.062","VIENNE"]
["L'ELAN GYMNIQUE DE COURBEVOIE",217,"11092.246","COURBEVOIE"]
["L'ENVOL ROMAINVILLE",218,"11093.390","ROMAINVILLE"]
["L'ENVOL SAINT-GAUDINOIS",219,"76031.073","ST GAUDENS"]
["LES ACROBATES DU CANIGOU",220,"76066.128","PRADES"]
["LES ALCYONS",221,"52085.001","ST-GILLES CROIX DE VIE"]
["LES AMIS GYMNASTES D'AULNAY /BOIS",222,"11093.331","AULNAY SOUS BOIS"]
["LES CADETS DE GASCOGNE",223,"75040.188","SAINT SEVER"]
["LES ETERLOUS",224,"27039.054","SAINT CLAUDE"]
["LES FARFADETS GYM ET TRAMPOLINE",225,"27070.064","LUXEUIL LES BAINS"]
["LES GRAPPES D'OR",226,"75064.105","JURANCON"]
["LES JEUNES DU CAPTALAT LA TESTE",227,"75033.009","LA TESTE"]
["LES MOUETTES DE ROYAN",228,"75017.083","ROYAN"]
["LES PATRIOTES AGENAIS",229,"75047.126","AGEN"]
["LICENCES INDIVIDUELLES FFGym",230,"40995.000","PARIS"]
["LINGUA CAPOEIRA TOURS ",231,"24037.076","TOURS "]
["LORRAINE GYMNASTIQUE LUNEVILLE",232,"44054.006","LUNEVILLE"]
["LOUVI'GYM",233,"53035.090","LOUVIGNE DU DESERT"]
["L'UNION D'AY",234,"44051.020","AY"]
["L'UNION des GYMNASTES NIORTAIS",235,"75079.090","NIORT"]
["L'UNION GYM",236,"76031.097","L'UNION"]
["MONT SAINT AIGNAN GYMNASTIQUE AUX AGRES",237,"28076.165","MONT SAINT AIGNAN"]
["MONTIGNY LE BRETONNEUX GYMNASTIQUE",238,"11078.013","MONTIGNY LE BRETONNEUX"]
["MORLAIX SAINT POL GYMNASTIQUE",239,"53029.010","MORLAIX"]
["MULHOUSE GYM ALSACE",240,"44068.156","MULHOUSE"]
["MUNICIPALE CONDOM",241,"76032.016","CONDOM"]
["NEUVILLE GYM",242,"84069.091","NEUVILLE S/SAONE"]
["NICE GYM",243,"93006.099","NICE"]
["PATRONAGE LAIQUE SAINT PIERRE DES CORPS",244,"24037.026","SAINT PIERRE DES CORPS"]
["PAUILLAC GYM",245,"75033.024","PAUILLAC"]
["PORTET GYM",246,"76031.099","PORTET SUR GARONNE"]
["RAYON SPORTIF BRAGARD ST DIZIER",247,"44052.055","SAINT DIZIER"]
["RIVE DROITE GYMNASTIQUE",248,"75033.084","GUÎTRES"]
["RYTHM' & GYM' CHAMPIGNY LE SEC",249,"75086.084","CHAMPIGNY LE SEC"]
["SAINT JEAN GYMNIQUE",250,"76031.048","ST JEAN"]
["SAINT SOUPPLETS GYMNASTIQUE",251,"11077.182","SAINT SOUPPLETS"]
["SAINT-DENIS GYM REUNION",252,"04974.042","SAINT-DENIS"]
["SALESIENNE ANNECY",253,"84074.069","ANNECY"]
["SALTO ALBIGEOIS",254,"76081.003","ALBI"]
["SALTO GYM CLUB",255,"53035.176","SAINT AUBIN DU CORMIER"]
["SALTO GYM LA ROCHE CENTRE VENDEE",256,"52085.104","ROCHE SUR YON"]
["SAUMUR LOIRE ALLIANCE GYMNIQUE",257,"52049.102","SAUMUR"]
["SEDAN GYMNIQUE",258,"44008.007","SEDAN"]
["SOCIETE DE GYMNASTIQUE DE YUTZ",259,"44057.012","YUTZ"]
["SOCIETE DE GYMNASTIQUE ERSTEIN",260,"44067.020","ERSTEIN"]
["SOCIETE DE GYMNASTIQUE MASEVAUX",261,"44068.039","MASEVAUX"]
["SOCIETE DE GYMNASTIQUE MUTTERSHOLTZ",262,"44067.011","MUTTERSHOLTZ"]
["SOCIETE DE GYMNASTIQUE SAUSHEIM",263,"44068.054","SAUSHEIM"]
["Société de Gymnastique Sportive St Joseph HOENHEIM",264,"44067.173","HOENHEIM"]
["SOCIETE DE TRAMPOLINE ET DE GYMNASTIQUE DE CHATEAUDUN",265,"24028.017","CHATEAUDUN"]
["Société Immercurienne Gymnique de Saint Laurent Blangy",266,"32062.085","ST LAURENT BLANGY"]
["SOCIETE MIOSSAISE",267,"75033.011","MIOS"]
["SOCIETE MUNICIPALE ARMENTIERES",268,"32059.004","ARMENTIERES"]
["SPORT ATHLETIQUE MERIGNACAIS",269,"75033.015","MERIGNAC"]
["SPORTING CLUB PRIVAS GYM",270,"84007.105","PRIVAS"]
["SPORTS REUNIS OBERNAI",271,"44067.013","OBERNAI"]
["ST CAPRAIS GYM BORDEAUX",272,"75033.032","BORDEAUX"]
["ST MAIXENT GYM",273,"75079.096","ST MAIXENT L'ECOLE"]
["STADE OLYMPIQUE DE ROSNY SOUS BOIS",274,"11093.346","ROSNY SOUS BOIS"]
["STADE POITEVIN GYMNASTIQUE",275,"75086.036","POITIERS"]
["SULNIAC GYM ACRO",276,"53056.141","SULNIAC"]
["TALENCE GYMNASTIQUE",277,"75033.004","TALENCE"]
["THOUARS GYM 79",278,"75079.087","THOUARS"]
["THOUROTTE GYM",279,"32060.037","THOUROTTE"]
["Trampo Gym Accro La Naborienne ",280,"44057.174","SAINT-AVOLD"]
["TRICOLORE SPORTIVE DE MASSY",281,"11091.110","MASSY"]
["U S J A CARQUEFOU",282,"52044.056","CARQUEFOU"]
["UNION ACROBATIQUE METZ-MOSELLE",283,"44057.173","METZ"]
["UNION COSNOISE SPORT",284,"27058.012","COSNE COURS SUR LOIRE"]
["UNION GYMNIQUE PALOISE",285,"75064.104","PAU"]
["UNION GYMNIQUE SAPEURS POMPIER PORTES LES VALENCE",286,"84026.043","PORTES LES VALENCE"]
["UNION GYMNIQUE SAUJONNAISE",287,"75017.059","SAUJON"]
["UNION HALLUINOISE DE GYM ET DE DANSE",288,"32059.019","HALLUIN"]
["Union Sportive Ancenienne Gymnastique",289,"52044.117","ANCENIS"]
["UNION SPORTIVE ARGENTON GYMNASTIQUE",290,"24036.096","ARGENTON SUR CREUSE"]
["UNION SPORTIVE AVENIR AMNEVILLE",291,"44057.053","AMNEVILLE"]
["UNION SPORTIVE BOURGUESANNE",292,"84007.002","BOURG ST ANDEOL"]
["UNION SPORTIVE DE CHAMALIERES",293,"84063.009","CHAMALIERES"]
["UNION SPORTIVE DE VERN GYMNASTIQUE",294,"53035.174","VERN SUR SEICHE"]
["UNION SPORTIVE FORBACH GYMNASTIQUE ET DANSE FORBACH",295,"44057.015","FORBACH"]
["UNION SPORTIVE JARNY GYMNASTIQUE",296,"44054.080","JARNY"]
["UNION SPORTIVE LAVALLOISE",297,"52053.073","LAVAL"]
["UNION SPORTIVE LIFFREENNE",298,"53035.039","LIFFRE"]
["UNION SPORTIVE PORTOISE DE GYMNASTIQUE ET DU SPORT ACROBATIQUE",299,"04974.006","LE PORT"]
["URKIROLAK GYM",300,"75064.115","ST JEAN DE LUZ"]
["USM GYM LA MELUNAISE",301,"11077.111","MELUN"]
["USMM section Gymnastique Fémina-Pasteur ",302,"24045.037","MONTARGIS"]
["VANNETAISE ATHLETIC CLUB",303,"53056.011","VANNES"]
["VELAY GYM",304,"84043.067","LE PUY"]
["VICHY GYM",305,"84003.059","VICHY"]
["VIGILANTS DE L'OUEST",306,"53035.021","RENNES"]
["VILLEMOMBLE SPORT GYMNASTIQUE",307,"11093.349","VILLEMOMBLE"]

{"sheet":"FedA Tumbling avant","index":1,"n_rows":14,"n_cols":5,"rows_kept":14,"cut":false,"hidden":true,"merged":[[9,0,10,0],[0,0,0,2],[2,0,8,0]]}
["Séries autorisées au Tumbling en avant\nTeamGym",null,null,null,{"$f":"COUNTA(B3:B14)","v":12}]
[null,"Séries","Valeur"]
[null,"Roulade avant",0.3]
[null,"Roue",0.5]
[null,"Roue Rondade",0.5]
[null,"Roue Roue pied pied",0.5]
[null,"Roue saut de mains",1.5]
[null,"Saut de mains",1.5]
[null,"Saut de mains 1 pied",1.5]
[null,"Saut de mains 1 pied Roue",1.5]
[null,"Saut de mains 1 pied Rondade",1.5]
[null,"Saut de mains 1 pied Saut de mains",1.5]
[null,"Salto av groupé",2]
[null,"Série Nulle",0]

{"sheet":"FedA Tumbling arrière","index":2,"n_rows":41,"n_cols":8,"rows_kept":41,"cut":false,"hidden":true,"merged":[[5,0,10,0],[0,0,0,2],[2,0,4,0]]}
["Séries autorisée au Tumbling en arrière\nTeamGym",null,null,{"$f":"COUNTA(SerieArriereTumblingFedA)","v":11}]
[null,"Séries","Valeur"]
[null,"Roue",0.5]
[null,"Roue pied pied",0.5]
[null,"Roue Roue pied pied",0.5]
[null,"Roue saut de mains",0.5]
[null,"Saut de mains 1 pied Roue",0.5]
[null,"Rondade",1]
[null,"Roue Rondade",1]
[null,"Saut de mains 1 pied Rondade",1]
[null,"Rondade flip",1.5]
[null,"Rondade salto groupé",2]
[null,"Série Nulle ",0]
[]
[]
[]
[]
[]
[]
[]
[]
[]
[]
[]
[]
[null,null,null,null,null,null,null,0]
[]
[]
[]
[]
[]
[]
[]
[]
[]
[]
[null,null,null,null,null,null,null,0]
[null,null,null,null,null,null,null,0]
[null,null,null,null,null,null,null,0]
[null,null,null,null,null,null,null,0]
[null,null,null,null,null,null,null,0]

{"sheet":"FedA MT - MT","index":3,"n_rows":13,"n_cols":4,"rows_kept":13,"cut":false,"hidden":true,"merged":[[0,0,0,2],[2,0,9,0]]}
["Séries autorisées au Mini Trampoline et Table de Saut\nTeamGym",null,null,{"$f":"COUNTA(SerieMTMTFedA)","v":11}]
[null,"Eléments","Valeur "]
[null,"Saut groupé",1]
[null,"Saut droit",1]
[null,"Saut droit 1/2 tour",1.2]
[null,"Saut carpé serré",1.3]
[null,"Saut carpé écart",1.3]
[null,"Saut droit 1 tour",1.4]
[null,"Saut carpé écart 1/2 tour",1.5]
[null,"Salto av groupé",1.8]
[null,"Salto av carpé",1.9]
[null,"Salto av tendu",2]
[null,"Passage Nul",0]

{"sheet":"ListeDiffSol","index":4,"n_rows":167,"n_cols":14,"rows_kept":167,"cut":false,"hidden":true,"merged":[[0,6,0,11],[0,0,0,5]]}
["Fédérale",null,null,null,null,null,"Performance"]
[]
["Saut","Pivots","Maintien","Elément de force","Mixte","GE","Combi","Saut","Pivots","Maintien","Elément de force","Mixte","GE","Acro"]
[]
["S201","P201","M202",null,"M202","G401","P1003","S1001","P1003","M1001","EF1005","A1002","G401","A1002"]
["S202","P202","M204",null,"M204",null,"P1004","S1002","P1004","M1002","EF1012","A1003","G601","A1003"]
["S204","P401","M206",null,"M206",null,"P1201","S1004","P1201","M1003","EF1013","A203","G602","A203"]
["S210","P402","M402",null,"M402",null,"P1202","S1007","P1202","M1006","EF1206","A205","G802","A205"]
["S211","P403","M404",null,"M404",null,"P1204","S1008","P1204","M1201","EF1210","A401",null,"A401"]
["S214",null,"M406",null,"M406",null,"P201","S1010","P201","M1202","EF1211","A402",null,"A402"]
["S215",null,"MM201",null,"MM201",null,"P202","S1016","P202","M1204","EF1407","A403",null,"A403"]
["S220",null,"MM202",null,"MM202",null,"P401","S1017","P401","M1206","EF1408","A404",null,"A404"]
["S401",null,"MM204",null,"MM204",null,"P402","S1018","P402","M1207","EF1411","A602",null,"A602"]
["S403",null,"MM206",null,"MM206",null,"P403","S1019","P403","M202","EF1412","A603",null,"A603"]
["S406",null,"MM207",null,"MM207",null,"P601","S1020","P601","M204","EF1608","A605",null,"A605"]
["S409",null,"MM208",null,"MM208",null,"P602","S1022","P602","M206","EF1610","A801",null,"A801"]
["S410",null,"MM402",null,"MM402",null,"P604","S1201","P604","M402","EF1611","A802",null,"A802"]
["S411",null,"MM403",null,"MM403",null,"P801","S1202","P801","M404","EF809","A803",null,"A803"]
["S412",null,"MM404",null,"MM404",null,"P802","S1208","P802","M406","EF810","A804",null,"A804"]
["S415",null,"MM405",null,"MM405",null,"P803","S1209A","P803","M601","EF812","A805",null,"A805"]
["S416",null,null,null,"P201",null,"S1001","S1209B",null,"M603",null,"EF1005"]
["S418",null,null,null,"P202",null,"S1002","S1212",null,"M604",null,"EF1012"]
["S420",null,null,null,"P401",null,"S1004","S1214",null,"M605",null,"EF1013"]
[null,null,null,null,"P402",null,"S1007","S1216",null,"M805",null,"EF1206"]
[null,null,null,null,"P403",null,"S1008","S1219",null,"M807",null,"EF1210"]
[null,null,null,null,"S201",null,"S1010","S1220",null,"MM1001",null,"EF1211"]
[null,null,null,null,"S202",null,"S1016","S1222",null,"MM1005",null,"EF1407"]
[null,null,null,null,"S204",null,"S1017","S201",null,"MM1006",null,"EF1408"]
[null,null,null,null,"S210",null,"S1018","S202",null,"MM1202",null,"EF1411"]
[null,null,null,null,"S211",null,"S1019","S204",null,"MM1403",null,"EF1412"]
[null,null,null,null,"S214",null,"S1020","S210",null,"MM201",null,"EF1608"]
[null,null,null,null,"S215",null,"S1022","S211",null,"MM202",null,"EF1610"]
[null,null,null,null,"S220",null,"S1201","S214",null,"MM204",null,"EF1611"]
[null,null,null,null,"S401",null,"S1202","S215",null,"MM206",null,"EF809"]
[null,null,null,null,"S403",null,"S1208","S220",null,"MM207",null,"EF810"]
[null,null,null,null,"S406",null,"S1209A","S401",null,"MM208",null,"EF812"]
[null,null,null,null,"S409",null,"S1209B","S403",null,"MM402",null,"G401"]
[null,null,null,null,"S410",null,"S1212","S406",null,"MM403",null,"G601"]
[null,null,null,null,"S411",null,"S1214","S409",null,"MM404",null,"G602"]
[null,null,null,null,"S412",null,"S1216","S410",null,"MM405",null,"G802"]
[null,null,null,null,"S415",null,"S1219","S411",null,"MM603",null,"M1001"]
[null,null,null,null,"S416",null,"S1220","S412",null,"MM604",null,"M1002"]
[null,null,null,null,"S418",null,"S1222","S415",null,"MM606",null,"M1003"]
[null,null,null,null,"S420",null,"S201","S416",null,"MM801",null,"M1006"]
[null,null,null,null,null,null,"S202","S418",null,"MM804",null,"M1201"]
[null,null,null,null,null,null,"S204","S420",null,"MM805",null,"M1202"]
[null,null,null,null,null,null,"S210","S601",null,"MM806",null,"M1204"]
[null,null,null,null,null,null,"S211","S602",null,null,null,"M1206"]
[null,null,null,null,null,null,"S214","S603",null,null,null,"M1207"]
[null,null,null,null,null,null,"S215","S604",null,null,null,"M202"]
[null,null,null,null,null,null,"S220","S605",null,null,null,"M204"]
[null,null,null,null,null,null,"S401","S606",null,null,null,"M206"]
[null,null,null,null,null,null,"S403","S613",null,null,null,"M402"]
[null,null,null,null,null,null,"S406","S614",null,null,null,"M404"]
[null,null,null,null,null,null,"S409","S615",null,null,null,"M406"]
[null,null,null,null,null,null,"S410","S618",null,null,null,"M601"]
[null,null,null,null,null,null,"S411","S621",null,null,null,"M603"]
[null,null,null,null,null,null,"S412","S622",null,null,null,"M604"]
[null,null,null,null,null,null,"S415","S803",null,null,null,"M605"]
[null,null,null,null,null,null,"S416","S804",null,null,null,"M805"]
[null,null,null,null,null,null,"S418","S805A",null,null,null,"M807"]
[null,null,null,null,null,null,"S420","S805B",null,null,null,"MM1001"]
[null,null,null,null,null,null,"S601","S806A",null,null,null,"MM1005"]
[null,null,null,null,null,null,"S602","S806B",null,null,null,"MM1006"]
[null,null,null,null,null,null,"S603","S807",null,null,null,"MM1202"]
[null,null,null,null,null,null,"S604","S809",null,null,null,"MM1403"]
[null,null,null,null,null,null,"S605","S811",null,null,null,"MM201"]
[null,null,null,null,null,null,"S606","S812",null,null,null,"MM202"]
[null,null,null,null,null,null,"S613","S813",null,null,null,"MM204"]
[null,null,null,null,null,null,"S614","S814",null,null,null,"MM206"]
[null,null,null,null,null,null,"S615","S819",null,null,null,"MM207"]
[null,null,null,null,null,null,"S618","S821",null,null,null,"MM208"]
[null,null,null,null,null,null,"S621",null,null,null,null,"MM402"]
[null,null,null,null,null,null,"S622",null,null,null,null,"MM403"]
[null,null,null,null,null,null,"S803",null,null,null,null,"MM404"]
[null,null,null,null,null,null,"S804",null,null,null,null,"MM405"]
[null,null,null,null,null,null,"S805A",null,null,null,null,"MM603"]
[null,null,null,null,null,null,"S805B",null,null,null,null,"MM604"]
[null,null,null,null,null,null,"S806A",null,null,null,null,"MM606"]
[null,null,null,null,null,null,"S806B",null,null,null,null,"MM801"]
[null,null,null,null,null,null,"S807",null,null,null,null,"MM804"]
[null,null,null,null,null,null,"S809",null,null,null,null,"MM805"]
[null,null,null,null,null,null,"S811",null,null,null,null,"MM806"]
[null,null,null,null,null,null,"S812",null,null,null,null,"P1003"]
[null,null,null,null,null,null,"S813",null,null,null,null,"P1004"]
[null,null,null,null,null,null,"S814",null,null,null,null,"P1201"]
[null,null,null,null,null,null,"S819",null,null,null,null,"P1202"]
[null,null,null,null,null,null,"S821",null,null,null,null,"P1204"]
[null,null,null,null,null,null,null,null,null,null,null,"P201"]
[null,null,null,null,null,null,null,null,null,null,null,"P202"]
[null,null,null,null,null,null,null,null,null,null,null,"P401"]
[null,null,null,null,null,null,null,null,null,null,null,"P402"]
[null,null,null,null,null,null,null,null,null,null,null,"P403"]
[null,null,null,null,null,null,null,null,null,null,null,"P601"]
[null,null,null,null,null,null,null,null,null,null,null,"P602"]
[null,null,null,null,null,null,null,null,null,null,null,"P604"]
[null,null,null,null,null,null,null,null,null,null,null,"P801"]
[null,null,null,null,null,null,null,null,null,null,null,"P802"]
[null,null,null,null,null,null,null,null,null,null,null,"P803"]
[null,null,null,null,null,null,null,null,null,null,null,"S1001"]
[null,null,null,null,null,null,null,null,null,null,null,"S1002"]
[null,null,null,null,null,null,null,null,null,null,null,"S1004"]
[null,null,null,null,null,null,null,null,null,null,null,"S1007"]
[null,null,null,null,null,null,null,null,null,null,null,"S1008"]
[null,null,null,null,null,null,null,null,null,null,null,"S1010"]
[null,null,null,null,null,null,null,null,null,null,null,"S1016"]
[null,null,null,null,null,null,null,null,null,null,null,"S1017"]
[null,null,null,null,null,null,null,null,null,null,null,"S1018"]
[null,null,null,null,null,null,null,null,null,null,null,"S1019"]
[null,null,null,null,null,null,null,null,null,null,null,"S1020"]
[null,null,null,null,null,null,null,null,null,null,null,"S1022"]
[null,null,null,null,null,null,null,null,null,null,null,"S1201"]
[null,null,null,null,null,null,null,null,null,null,null,"S1202"]
[null,null,null,null,null,null,null,null,null,null,null,"S1208"]
[null,null,null,null,null,null,null,null,null,null,null,"S1209A"]
[null,null,null,null,null,null,null,null,null,null,null,"S1209B"]
[null,null,null,null,null,null,null,null,null,null,null,"S1212"]
[null,null,null,null,null,null,null,null,null,null,null,"S1214"]
[null,null,null,null,null,null,null,null,null,null,null,"S1216"]
[null,null,null,null,null,null,null,null,null,null,null,"S1219"]
[null,null,null,null,null,null,null,null,null,null,null,"S1220"]
[null,null,null,null,null,null,null,null,null,null,null,"S1222"]
[null,null,null,null,null,null,null,null,null,null,null,"S201"]
[null,null,null,null,null,null,null,null,null,null,null,"S202"]
[null,null,null,null,null,null,null,null,null,null,null,"S204"]
[null,null,null,null,null,null,null,null,null,null,null,"S210"]
[null,null,null,null,null,null,null,null,null,null,null,"S211"]
[null,null,null,null,null,null,null,null,null,null,null,"S214"]
[null,null,null,null,null,null,null,null,null,null,null,"S215"]
[null,null,null,null,null,null,null,null,null,null,null,"S220"]
[null,null,null,null,null,null,null,null,null,null,null,"S401"]
[null,null,null,null,null,null,null,null,null,null,null,"S403"]
[null,null,null,null,null,null,null,null,null,null,null,"S406"]
[null,null,null,null,null,null,null,null,null,null,null,"S409"]
[null,null,null,null,null,null,null,null,null,null,null,"S410"]
[null,null,null,null,null,null,null,null,null,null,null,"S411"]
[null,null,null,null,null,null,null,null,null,null,null,"S412"]
[null,null,null,null,null,null,null,null,null,null,null,"S415"]
[null,null,null,null,null,null,null,null,null,null,null,"S416"]
[null,null,null,null,null,null,null,null,null,null,null,"S418"]
[null,null,null,null,null,null,null,null,null,null,null,"S420"]
[null,null,null,null,null,null,null,null,null,null,null,"S601"]
[null,null,null,null,null,null,null,null,null,null,null,"S602"]
[null,null,null,null,null,null,null,null,null,null,null,"S603"]
[null,null,null,null,null,null,null,null,null,null,null,"S604"]
[null,null,null,null,null,null,null,null,null,null,null,"S605"]
[null,null,null,null,null,null,null,null,null,null,null,"S606"]
[null,null,null,null,null,null,null,null,null,null,null,"S613"]
[null,null,null,null,null,null,null,null,null,null,null,"S614"]
[null,null,null,null,null,null,null,null,null,null,null,"S615"]
[null,null,null,null,null,null,null,null,null,null,null,"S618"]
[null,null,null,null,null,null,null,null,null,null,null,"S621"]
[null,null,null,null,null,null,null,null,null,null,null,"S622"]
[null,null,null,null,null,null,null,null,null,null,null,"S803"]
[null,null,null,null,null,null,null,null,null,null,null,"S804"]
[null,null,null,null,null,null,null,null,null,null,null,"S805A"]
[null,null,null,null,null,null,null,null,null,null,null,"S805B"]
[null,null,null,null,null,null,null,null,null,null,null,"S806A"]
[null,null,null,null,null,null,null,null,null,null,null,"S806B"]
[null,null,null,null,null,null,null,null,null,null,null,"S807"]
[null,null,null,null,null,null,null,null,null,null,null,"S809"]
[null,null,null,null,null,null,null,null,null,null,null,"S811"]
[null,null,null,null,null,null,null,null,null,null,null,"S812"]
[null,null,null,null,null,null,null,null,null,null,null,"S813"]
[null,null,null,null,null,null,null,null,null,null,null,"S814"]
[null,null,null,null,null,null,null,null,null,null,null,"S819"]
[null,null,null,null,null,null,null,null,null,null,null,"S821"]

{"sheet":"ListeClubs 95 ","index":5,"n_rows":191,"n_cols":6,"rows_kept":191,"cut":false,"hidden":true,"merged":[]}
["Nom","Numéro d'affiliation","Abréviation","Région","Département","Ville"]
["UNION KOENIGSHOFFEN","01067.077","UNION KOENIGSHOFFEN","ALSACE","BAS RHIN","KOENIGSHOFFEN"]
["SOCIETE DE GYMNASTIQUE MASEVAUX","01068.039","S.G. MASEVAUX","ALSACE","HAUT RHIN","MASEVAUX"]
["SOCIETE DE GYMNASTIQUE SAUSHEIM","01068.054","S.G. SAUSHEIM","ALSACE","HAUT RHIN","SAUSHEIM"]
["EAST FRANCE TEAMGYM","01068.154",null,"ALSACE","HAUT RHIN","RIBEAUVILLE"]
["L'UNION SPORTIVE TALENCAISE","02033.004","L'US TALENCE","AQUITAINE","GIRONDE","TALENCE"]
["LE STADE PESSACAIS UNION CLUB","02033.005","SPUC PESSAC","AQUITAINE","GIRONDE","PESSAC"]
["LA VAILLANTE DE LANGON","02033.006","LA V. LANGON","AQUITAINE","GIRONDE","LANGON"]
["LES JEUNES DU CAPTALAT LA TESTE","02033.009","JC LA TESTE","AQUITAINE","GIRONDE","LA TESTE"]
["ASSOCIATION SPORTIVE ET CULTURELLE PESSAC ALOUETTE","02033.010","ASCPA PESSAC","AQUITAINE","GIRONDE","PESSAC ALOUETTE"]
["ENTENTE SPORTIVE DE BRUGES","02033.012","ES BRUGES","AQUITAINE","GIRONDE","BRUGES"]
["ASSOCIATION SPORTIVE LE HAILLAN GYM","02033.018","A.S LE HAILLAN GYM","AQUITAINE","GIRONDE","LE HAILLAN"]
["ASSOCIATION SPORTIVE ILLACAISE","02033.069","AS ILLACAISE","AQUITAINE","GIRONDE","ST JEAN D'ILLAC"]
["CLUB DEPARTEMENTAL DE GYMNASTIQUE GIRONDE","02033.074","CD GYM 33","AQUITAINE","GIRONDE","BORDEAUX"]
["ASSOCIATION SPORTIVE LOS SAUTAPRATS DE COARRAZE NAY","02064.123","AS LOS SAUTAPRATS COARRAZE NAY","AQUITAINE","PYRENEES ATLANTIQUES","NAY"]
["LA BELLERIVOISE","03003.024","LA BELLERIVOISE","AUVERGNE","ALLIER","BELLERIVE SUR ALLIER"]
["LA FRANCAISE","03003.026","LA FRANCAISE","AUVERGNE","ALLIER","CUSSET"]
["ILETS SPORTS MONTLUCONNAIS","03003.031","ILETS SPORTS MONTLUCONNAIS","AUVERGNE","ALLIER","MONTLUÇON"]
["LA BOURBONNAISE","03003.032","LA BOURBONNAISE","AUVERGNE","ALLIER","MOULINS"]
["ESPERANCE ST-GERMANOISE","03003.053","ESPERANCE ST-GERMANOISE","AUVERGNE","ALLIER","ST GERMAIN DES FOSSÉS"]
["VICHY GYM","03003.059","VICHY GYM","AUVERGNE","ALLIER","VICHY"]
["ENTENTE GYMNIQUE GANNATOISE","03003.077","E.G. GANNATOISE","AUVERGNE","ALLIER","GANNAT"]
["LA JEANNE D ARC","03015.033","LA JEANNE D'ARC","AUVERGNE","CANTAL","MAURIAC"]
["ASSOCIATION SPORTIVE MONTFERRANDAISE","03063.002","A.S. MONTFERRANDAISE","AUVERGNE","PUY DE DOME","CLERMONT-FD"]
["UNION SPORTIVE DE CHAMALIERES","03063.009","U.S. CHAMALIERES","AUVERGNE","PUY DE DOME","CHAMALIÈRES"]
["LA GAULOISE MOZAC","03063.014","LA GAULOISE MOZAC","AUVERGNE","PUY DE DOME","MOZAC"]
["UNION SPORTIVE VIC LE COMTE GYMNASTIQUE","03063.022","U.S. VIC LE COMTE","AUVERGNE","PUY DE DOME","VIC LE COMTE"]
["ASS. SPORTIVE GUERIGNY URZY","04058.005","A.S.GUERIGNY URZY","BOURGOGNE","NIEVRE","GUERIGNY"]
["ESPERANCE ST LEGER GYMNASTIQUE","04058.006","E. S. L. GYMNASTIQUE","BOURGOGNE","NIEVRE","ST LEGER DES VIGNES"]
["CERCLE SPORTIF LAIC","04071.021","CERCLE SPORTIF LAIC","BOURGOGNE","SAONE ET LOIRE","SAINT VALLIER"]
["ASSOCIATION GYMNIQUE DE PLOUGASTEL","05029.086","AG PLOUGASTEL","BRETAGNE","FINISTERE","PLOUGASTEL"]
["CERCLE PAUL BERT","05035.009","CERCLE PAUL BERT","BRETAGNE","ILLE ET VILAINE","RENNES"]
["KEWENN GYMNASTIQUE","05056.160","KEWENN GYM","BRETAGNE","MORBIHAN","QUEVEN"]
["L'UNION D'AY","06051.020","L'UNION D'AY","CHAMPAGNE-ARDENNE","MARNE","AY"]
["LA CHAUMONTAISE","06052.025","LA CHAUMONTAISE","CHAMPAGNE-ARDENNE","HAUTE MARNE","CHAUMONT"]
["RAYON SPORTIF BRAGARD ST DIZIER","06052.055","RSB ST DIZIER","CHAMPAGNE-ARDENNE","HAUTE MARNE","SAINT DIZIER"]
["AMICALE LAIQUE JULES FERRY","08001.021","ALJF Ambérieu","RHONE ALPES","AIN","AMBERIEU EN BUGEY"]
["LES ENFANTS DU DEVOIR","08001.024","LES ENFANTS DU DEVOIR","RHONE ALPES","AIN","OYONNAX"]
["AVENIR GESSIEN DE THOIRY","08001.062","AVENIR GESSIEN","RHONE ALPES","AIN","THOIRY"]
["LA SEREINE DE MONTLUEL","08001.063","SM","RHONE ALPES","AIN","MONTLUEL"]
["ECOLE GYMNIQUE DE JASSANS","08001.092","E.G.J.","RHONE ALPES","AIN","JASSANS RIOTTIER"]
["LA SEREINE DE ST ANDRE DE CORCY","08001.159","SSAC","RHONE ALPES","AIN","ST ANDRE DE CORCY"]
["UNION SPORTIVE AUBENAS","08007.032","US AUBENAS","RHONE ALPES","ARDECHE","AUBENAS"]
["AVENIR DE ROMANS","08026.003","A ROMANS","RHONE ALPES","DROME","ROMANS"]
["GYMNASE MUNICIPAL DE ST VALLIER","08026.004","GMSV","RHONE ALPES","DROME","ST VALLIER"]
["UNION SPORTIVE CRESTOISE","08026.005","UNION SPORTIVE","RHONE ALPES","DROME","CREST"]
["ENTENTE GYMNIQUE PIERRELATTE","08026.006","EGP","RHONE ALPES","DROME","PIERRELATTE"]
["AVANT GARDE TAIN TOURNON","08026.008","AGTT","RHONE ALPES","DROME","TAIN TOURNON"]
["GROUPE OMNISPORT LORIOL","08026.036","GOL","RHONE ALPES","DROME","LORIOL"]
["UNION GYMNIQUE SAPEURS POMPIER PORTES LES VALENCE","08026.043","UGSP PORTES LES VALENCE","RHONE ALPES","DROME","PORTES LES VALENCE"]
["GRENOBLE GYM","08038.013","GRENOBLE GYM","RHONE ALPES","ISERE","GRENOBLE"]
["AMICALE LAIQUE JEUNES FILLES DE ROANNE","08042.014","AMICALE LAIQUE JEUNES FILLES","RHONE ALPES","LOIRE","ROANNE"]
["INDEPENDANTE STEPHANOISE","08042.025","IS","RHONE ALPES","LOIRE","ST ETIENNE"]
["CLUB GYMNIQUE RILLIEUX","08069.051","CGR","RHONE ALPES","RHONE","RILLIEUX LA PAPE"]
["NEUVILLE GYM","08069.091","NEUVILLE GYM","RHONE ALPES","RHONE","NEUVILLE S/SAONE"]
["ENFANTS DU REVARD AIX LES BAINS","08073.037","ER AIX LES BAINS","RHONE ALPES","SAVOIE","AIX LES BAINS"]
["AVANT GARDE ALBERTVILLE","08073.042","AG ALBERTVILLE","RHONE ALPES","SAVOIE","ALBERTVILLE"]
["AVENIR EVIANAIS","08074.041",null,"RHONE ALPES","HAUTE SAVOIE","EVIAN"]
["L OLYMPIQUE GRANDE SYNTHE","09059.098","OGS","NORD PAS DE CALAIS","NORD","GRANDE SYNTHE"]
["ALLIANCE TOURQUENNOISE DE GYMNASTIQUE","09059.254","ATG","NORD PAS DE CALAIS","NORD","TOURCOING"]
["LA FRATERNELLE D'OUTREAU","09062.155","FRATERNELLE OUTREAU","NORD PAS DE CALAIS","PAS DE CALAIS","OUTREAU"]
["INDEPENDANTE COMTOISE BESANCON","10025.008","I.C BESANCON","FRANCHE COMTE","DOUBS","BESANÇON"]
["EVOLUTION MORTEAU","10025.014","EVOLUTION MORTEAU","FRANCHE COMTE","DOUBS","MORTEAU"]
["LA LEGERE MELINOISE","10070.026","LEGERE MELINOISE ECHENOZ LA M.","FRANCHE COMTE","HAUTE SAONE","ECHENOZ LA MELINE"]
["VAUDOISE HERICOURT","10070.052","VAUDOISE HERICOURT","FRANCHE COMTE","HAUTE SAONE","HÉRICOURT"]
["AVANT GARDE de la MOTTE GYM","10070.055","AGM GYM","FRANCHE COMTE","HAUTE SAONE","VESOUL"]
["CARCASSONNE OLYMPIQUE SECTION GYMNASTIQUE","11011.002","CARCASSONNE OLYMPIQUE","LANGUEDOC ROUSSILLON","AUDE","CARCASSONNE"]
["ETOILE SPORTIVE ST MARCELLOISE SUD MINERVOIS","11011.015","ETOILE SPORTIVE ST MARCEL","LANGUEDOC ROUSSILLON","AUDE","SAINT MARCEL"]
["ENTENTE GYMNIQUE LA ROSE BLEUE","11030.042","LA ROSE BLEUE BAGNOLS S/CEZE","LANGUEDOC ROUSSILLON","GARD","BAGNOLS SUR CEZE"]
["ASSOCIATION SPORTIVE BEZIERS GYMNASTIQUE & SPORTS ACROBATIQUES","11034.006","A.S.BEZIERS GYM & SPORTS ACROB","LANGUEDOC ROUSSILLON","HERAULT","BEZIERS"]
["CLUB DE GYMNASTIQUE DE SERIGNAN","11034.128","GYM CLUB SERIGNAN","LANGUEDOC ROUSSILLON","HERAULT","SERIGNAN"]
["ASSOCIATION GYMNIQUE PERPIGNANAISE","11066.053","A.G.P.PERPIGNAN","LANGUEDOC ROUSSILLON","PYRENEES ORIENTALES","PERPIGNAN"]
["GYM SPORT PAM","12054.005","PONT A MOUSSON","LORRAINE","MEURTHE ET MOSELLE","PONT A MOUSSON"]
["LORRAINE GYMNASTIQUE LUNEVILLE","12054.006","LORRAINE LUNEVILLE","LORRAINE","MEURTHE ET MOSELLE","LUNEVILLE"]
["AMICALE LAIQUE P.BROSSOLETTE VANDOEUVRE","12054.009","A.L.B. VANDOEUVRE","LORRAINE","MEURTHE ET MOSELLE","VANDOEUVRE"]
["SOCIETE DE GYMNASTIQUE DE YUTZ","12057.012","STE DE GYMN.YUTZ","LORRAINE","MOSELLE","YUTZ"]
["UNION SPORTIVE AVENIR AMNEVILLE","12057.053","U.S.AVENIR AMNEVILLE","LORRAINE","MOSELLE","AMNEVILLE"]
["ASSOCIATION GYMNIQUE CREHANGE FAULQUEMONT","12057.131","A.G.C. FAULQUEMONT","LORRAINE","MOSELLE","FAULQUEMONT"]
["LA VOSGIENNE EPINAL","12088.026","LA VOSGIENNE EPINAL","LORRAINE","VOSGES","EPINAL"]
["LA FRONTIERE DE REMIREMONT","12088.047","FRONTIERE REMIREMONT","LORRAINE","VOSGES","REMIREMONT"]
["LA JULIANA NOMEXY","12088.089","LA JULIANA NOMEXY","LORRAINE","VOSGES","NOMEXY"]
["ENTENTE GYMNIQUE DEODATIENNE","12088.092","E.G. SAINT DIE","LORRAINE","VOSGES","SAINT DIE DES VOSGES"]
["LA JEANNE D'ARC DE PLOMBIERES","12088.095","J.D'ARC PLOMBIERES","LORRAINE","VOSGES","PLOMBIERES"]
["LA PERSEVERANTE DE MAROMME","14076.020","LA PERSEVERANTE","HAUTE NORMANDIE","SEINE MARITIME","MAROMME"]
["LA SOTTEVILLAISE","14076.022","LA SOTTEVILLAISE","HAUTE NORMANDIE","SEINE MARITIME","SOTTEVILLE-LES-ROUEN"]
["ASSOCIATION SPORTIVE COURONNAISE de GYMNASTIQUE","14076.027","A.S.C.GYM","HAUTE NORMANDIE","SEINE MARITIME","PETIT COURONNE"]
["E. S. M. G-O","14076.067","E. S. M. G-O","HAUTE NORMANDIE","SEINE MARITIME","GONFREVILLE L.ORCHER"]
["GROUPEMENT GYMNIQUE HAVRE BANLIEUE","14076.073","G. G. H. B.","HAUTE NORMANDIE","SEINE MARITIME","LE HAVRE"]
["MONT SAINT AIGNAN GYMNASTIQUE AUX AGRES","14076.165","MSAGA","HAUTE NORMANDIE","SEINE MARITIME","MONT SAINT AIGNAN"]
["EVASION SPORTIVE ET CULTURELLE PAR L.ANIMATION ET LES LOISIRS GYMNIQUES","14076.177","ESCAL","HAUTE NORMANDIE","SEINE MARITIME","ROUEN"]
["ETOILE SAINT AMANDOISE","15018.003","ETOILE ST AMANDOISE","CENTRE","CHER","SAINT AMAND MONTROND"]
["LA MEHUNOISE VIGILANTE","15018.005","LA MEHUNOISE VIGILANTE","CENTRE","CHER","MEHUN SUR YEVRE"]
["GYMNASTIQUE LUNEROISE","15018.043",null,"CENTRE","CHER","LUNERY"]
["SOCIETE DE TRAMPOLINE ET DE GYMNASTIQUE DE CHATEAUDUN","15028.017","STG CHATEAUDUN","CENTRE","EURE ET LOIR","CHATEAUDUN"]
["ISSOLDUNOISE","15036.004","ISSOLDUNOISE","CENTRE","INDRE","ISSOUDUN"]
["AMICALE LAIQUE DE CHATEAUROUX","15036.050","AL CHATEAUROUX","CENTRE","INDRE","CHATEAUROUX"]
["UNION SPORTIVE ARGENTONNAISE GYMNASTIQUE","15036.096","US ARGENTONNAISE GYM","CENTRE","INDRE","ARGENTON SUR CREUSE"]
["REVEIL SPORTIF SAINT CYR SUR LOIRE","15037.071","REVEIL SPORTIF ST CYR","CENTRE","INDRE ET LOIRE","SAINT CYR SUR LOIRE"]
["ALERTE SAINT GEORGES SUR CHER","15041.063","ALERTE ST GEORGES","CENTRE","LOIR ET CHER","SAINT GEORGES SUR CHER"]
["ASSOCIATION SPORTIVE DE LA JEUNESSE ONZAINOISE","15041.076","ASJO ONZAIN","CENTRE","LOIR ET CHER","ONZAIN"]
["CLUB COMITE REGIONAL DU CENTRE-VAL DE LOIRE DE GYMNASTIQUE","15045.000","CRCVLG","CENTRE","LOIRET","OLIVET"]
["GYM OLIVET","15045.038",null,"CENTRE","LOIRET","OLIVET"]
["ETOILE BALGENTIENNE","15045.066","ETOILE BALGENTIENNE","CENTRE","LOIRET","BEAUGENCY"]
["ESPERANCE MONTATAIRE","16060.013","ESPERANCE MONTATAIRE","PICARDIE","OISE","MONTATAIRE"]
["THOUROTTE GYM","16060.037","THOUROTTE GYM","PICARDIE","OISE","THOUROTTE"]
["CLUB GYMNIQUE DE LASSIGNY","16060.068","C G L","PICARDIE","OISE","LASSIGNY"]
["CLUB DE GYMNASTIQUE DE HERMES","16060.086","CGDH","PICARDIE","OISE","HERMES"]
["ETOILE SPORTIVE DES CHEMINOTS LONGUEAU AMIENS METROPOLE GYMNASTIQUE","16080.009","ESCLAM GYM","PICARDIE","SOMME","LONGUEAU AMIENS METROPOLE"]
["ABBEVILLE GYM","16080.065","ABBEVILLE GYM","PICARDIE","SOMME","ABBEVILLE"]
["LA COGNACAISE","18016.003","LA COGNACAISE","POITOU CHARENTES","CHARENTE","COGNAC"]
["Association Angérienne d'Activité Gymnique","18017.001","A3GYM","POITOU CHARENTES","CHARENTE MARITIME","ST JEAN D ' ANGELY"]
["LA ROCHEFORTAISE","18017.006","LA ROCHEFORTAISE","POITOU CHARENTES","CHARENTE MARITIME","ROCHEFORT SUR MER"]
["UNION SPORTIVE SAINTES CLUB CHEMINOTS GYMNASTIQUE","18017.026","USSCC GYM","POITOU CHARENTES","CHARENTE MARITIME","SAINTES"]
["GYM OLERON","18017.051","GYM OLERON","POITOU CHARENTES","CHARENTE MARITIME","SAINT PIERRE D OLERON"]
["UNION GYMNIQUE SAUJONNAISE","18017.059","UG SAUJON","POITOU CHARENTES","CHARENTE MARITIME","SAUJON"]
["LA TONNACQUOISE GYMNASTIQUE","18017.081",null,"POITOU CHARENTES","CHARENTE MARITIME","TONNAY CHARENTE"]
["LES MOUETTES DE ROYAN","18017.083",null,"POITOU CHARENTES","CHARENTE MARITIME","ROYAN"]
["AVANT GARDE DE TERVES","18079.022","AVANT GARDE TERVES","POITOU CHARENTES","DEUX SEVRES","TERVES"]
["GIVRE EN MAI","18079.024","GIVRE EN MAI","POITOU CHARENTES","DEUX SEVRES","SAINT SAUVEUR DE GIVRE EN MAI"]
["CABRI MELLOIS","18079.037","CABRI MELLOIS","POITOU CHARENTES","DEUX SEVRES","MELLE"]
["TRINITAIRES GYMNASTIQUE","18079.045","TRINITAIRES GYMNASTIQUE","POITOU CHARENTES","DEUX SEVRES","MAULEON"]
["LA VOLT'AIRE AIRVAULT","18079.048","VOLT'AIRE AIRVAULT","POITOU CHARENTES","DEUX SEVRES","AIRVAULT"]
["GYM CLUB NUEIL LES AUBIERS","18079.053","GCNA","POITOU CHARENTES","DEUX SEVRES","NUEIL LES AUBIERS"]
["GYMNASTES DE L'EGRAY","18079.062","GYMNASTES EGRAY","POITOU CHARENTES","DEUX SEVRES","GERMOND"]
["IMPULSION GYM","18079.088","IMPULSION GYM","POITOU CHARENTES","DEUX SEVRES","ST MARTIN DE BERNEGOUE"]
["L'UNION des GYMNASTES NIORTAIS","18079.090","UGN","POITOU CHARENTES","DEUX SEVRES","NIORT"]
["CLUB SPORTIF ARTISTIQUE DE LA DEFENSE - CHATELLERAULT","18086.009","CSAD - C GYM","POITOU CHARENTES","VIENNE","CHATELLERAULT"]
["CERCLE D EDUCATION PHYSIQUE GYM POITIERS","18086.017","CEP POITIERS","POITOU CHARENTES","VIENNE","POITIERS"]
["CLUB GROUP'OMNISPORT de ST JULIEN L'ARS","18086.031","CGSTJA","POITOU CHARENTES","VIENNE","SAINT JULIEN L'ARS"]
["ASSOCIATION GYMNIQUE LOUDUNAISE","18086.034","AG LOUDUNAISE","POITOU CHARENTES","VIENNE","LOUDUN"]
["STADE POITEVIN GYMNASTIQUE","18086.036","SPG","POITOU CHARENTES","VIENNE","POITIERS"]
["ENTRE CLAIN ET MIOSSON","18086.068","ECM","POITOU CHARENTES","VIENNE","FLEURE"]
["NOUVEL'R GYM LENCLOITRE","18086.077","CGL","POITOU CHARENTES","VIENNE","LENCLOITRE"]
["RYTHM' & GYM' CHAMPIGNY LE SEC","18086.084","RaG","POITOU CHARENTES","VIENNE","CHAMPIGNY LE SEC"]
["VIENNE GYM","18086.089","VIENNE GYM","POITOU CHARENTES","VIENNE","POITIERS"]
["CLUB MARIGNANAIS DES SPORTS DE GYMNASTIQUE","19013.001","C.M.S. MARIGNANE","PROVENCE ALPES COTE D AZUR","BOUCHES DU RHONE","MARIGNANE"]
["GYMNASTIQUE CLUB MIRAMAS","19013.052","G.C. MIRAMAS","PROVENCE ALPES COTE D AZUR","BOUCHES DU RHONE","MIRAMAS"]
["ENTENTE NOTRE DAME DU MONT","19013.097",null,"PROVENCE ALPES COTE D AZUR","BOUCHES DU RHONE","MARSEILLE"]
["GYMNASTIQUE DU PAYS D'AIX EN PROVENCE","19013.166","GPA","PROVENCE ALPES COTE D AZUR","BOUCHES DU RHONE","AIX EN PROVENCE"]
["CLUB GYMNIQUE SAINT MAXIMINOIS","19083.024","C.G.S.M","PROVENCE ALPES COTE D AZUR","VAR","ST MAXIMIN LA STE BAUME"]
["HYERES GYM","19083.031","HYERES GYM","PROVENCE ALPES COTE D AZUR","VAR","HYERES"]
["GYM 2000 LA FARLEDE","19083.088","GYM 2000 LA FARLEDE","PROVENCE ALPES COTE D AZUR","VAR","LA FARLEDE"]
["ASSOCIATION LES PITCHOUNS DE CARCES","19083.101","Les Pitchouns","PROVENCE ALPES COTE D AZUR","VAR","CARCES"]
["ACRO TRAMP SAINT MAXIMIN SEILLONS","19083.110","ATSM","PROVENCE ALPES COTE D AZUR","VAR","SAINT MAXIMIN LA SAINTE BAUME - SEILLONS"]
["CLUB L'ISLOIS DE GYMNASTIQUE","19084.064","C.L.G","PROVENCE ALPES COTE D AZUR","VAUCLUSE","L ISLE SUR LA SORGUE"]
["LES ECUR.CRITOURIENS","20009.010","LES ECUR.CRITOURIENS","MIDI PYRENEES","ARIEGE","LA TOUR DU CRIEU"]
["COQUELICOT TOULOUSE GYM","20031.012","C. T. GYM","MIDI PYRENEES","HAUTE GARONNE","TOULOUSE"]
["ETOILE GYMNIQUE DE COLOMIERS","20031.035","E.G.COLOMIERS","MIDI PYRENEES","HAUTE GARONNE","COLOMIERS"]
["ELAN GYMNIQUE","20031.049","ELAN GYMNIQUE","MIDI PYRENEES","HAUTE GARONNE","BLAGNAC"]
["PORTET GYM","20031.099","PORTET GYM","MIDI PYRENEES","HAUTE GARONNE","PORTET SUR GARONNE"]
["Association Sportive Fleurance Gym","20032.084","AS Fleurance Gym","MIDI PYRENEES","GERS","FLEURANCE"]
["LA BIGOURDANE TARBES","20065.023","LA BIGOURDANE TARBES","MIDI PYRENEES","HAUTES PYRENEES","TARBES"]
["SALTO ALBIGEOIS","20081.003","SALTO ALBIGEOIS","MIDI PYRENEES","TARN","ALBI"]
["LA NANTAISE","21044.012","LA NANTAISE","PAYS DE LA LOIRE","LOIRE ATLANTIQUE","NANTES"]
["ANGERS GYMNASTIQUE","21049.077","ANGERS GYMNASTIQUE","PAYS DE LA LOIRE","MAINE ET LOIRE","ANGERS"]
["A.S.P.C. GYM'SPORT","21049.082","A.S.PONTS DE CE","PAYS DE LA LOIRE","MAINE ET LOIRE","LES PONTS DE CE"]
["SAUMUR LOIRE ALLIANCE GYMNIQUE","21049.102","SLAG","PAYS DE LA LOIRE","MAINE ET LOIRE","SAUMUR"]
["UNION SPORTIVE LAVALLOISE","21053.073","UNION SPORTIVE LAVAL","PAYS DE LA LOIRE","MAYENNE","LAVAL"]
["GYM CLUB SUZERAIN","21072.011","GYM CLUB SUZERAIN","PAYS DE LA LOIRE","SARTHE","LA SUZE SUR SARTHE"]
["AVANT GARDE DU MANS","21072.041","AVANT GARDE DU MANS","PAYS DE LA LOIRE","SARTHE","LE MANS"]
["A S C A","21072.054","A S C A","PAYS DE LA LOIRE","SARTHE","LA CHAPELLE ST-AUBIN"]
["LA FONTENAISIENNE","21085.013","LA FONTENAISIENNE","PAYS DE LA LOIRE","VENDEE","FONTENAY LE COMTE"]
["BEAUSEJOUR LES SABLES","21085.018","BEAUSEJOUR LES SABLES","PAYS DE LA LOIRE","VENDEE","LES SABLES D'OLONNE"]
["E.S.M. GYM CHALLANS","21085.048","E.S.M. GYM CHALLANS","PAYS DE LA LOIRE","VENDEE","CHALLANS"]
["GYMNASTIQUE CLUB LA ROCHE SUR YON","21085.099","G C R Y","PAYS DE LA LOIRE","VENDEE","ROCHE SUR YON"]
["LA CELLE SAINT CLOUD GYM","23078.003","LA CELLE ST CLOUD-LCSCG","ILE DE FRANCE OUEST","YVELINES","LA CELLE SAINT CLOUD"]
["CLUB SPORTIF MUNICIPAL DE GYMNASTIQUE EPINAY SOUS SENART","23091.104","EPINAY SS SENART-CSMG","ILE DE FRANCE OUEST","ESSONNE","EPINAY SOUS SENART"]
["ENTENTE GYMNIQUE ETAMPES","23091.105","ETAMPES-EGE","ILE DE FRANCE OUEST","ESSONNE","ETAMPES"]
["SPORTING CLUB DE LIMOURS GYMNASTIQUE","23091.107","LIMOURS-SCLG","ILE DE FRANCE OUEST","ESSONNE","LIMOURS"]
["TRICOLORE SPORTIVE DE MASSY","23091.110","MASSY-TSM","ILE DE FRANCE OUEST","ESSONNE","MASSY"]
["ASSOCIATION GYMNIQUE BREUILLETOISE","23091.135","BREUILLET-AGB","ILE DE FRANCE OUEST","ESSONNE","BREUILLET"]
["GYMNASTIQUE CLUB MENNECY","23091.152","MENNECY-GCM","ILE DE FRANCE OUEST","ESSONNE","MENNECY"]
["DRAVEIL TEAM TUMBLING - GYMNASTIQUE","23091.183","DRAVEIL-DTTG","ILE DE FRANCE OUEST","ESSONNE","DRAVEIL"]
["UNION SPORTIVE MUNICIPALE MALAKOFF","23092.209","MALAKOFF-USMM","ILE DE FRANCE OUEST","HAUTS DE SEINE","MALAKOFF"]
["ALBONAISE GYMNASTIQUE","23095.301","FRANCONVILLE-AG","ILE DE FRANCE OUEST","VAL D'OISE","FRANCONVILLE"]
["ETOILE GOUSSAINVILLOISE","23095.303","GOUSSAINVILLE-EG","ILE DE FRANCE OUEST","VAL D'OISE","GOUSSAINVILLE"]
["LES ECUREUILS DE SAINT PRIX","23095.330","ST PRIX-ESP","ILE DE FRANCE OUEST","VAL D'OISE","SAINT PRIX"]
["EN AVANT ! DE PARIS","24075.004","EN AVANT DE PARIS","ILE DE FRANCE MARNE","PARIS","PARIS"]
["MEAUX GYMNASTIQUE","24077.110","MEAUX GYMNASTIQUE","ILE DE FRANCE MARNE","SEINE ET MARNE","MEAUX"]
["CLUB ATHLETIQUE COMBS LA VILLE GYMNASTIQUE","24077.128","CA COMBS LA VILLE GYM","ILE DE FRANCE MARNE","SEINE ET MARNE","COMBS LA VILLE"]
["ASSOCIATION GYMNIQUE DE CESSON VERT ST DENIS","24077.130","AG CESSON VERT ST D.","ILE DE FRANCE MARNE","SEINE ET MARNE","CESSON VERT SAINT DENIS"]
["ESPOIR GYMNIQUE DE BRIE COMTE ROBERT","24077.178","EG BRIE COMTE ROBERT","ILE DE FRANCE MARNE","SEINE ET MARNE","BRIE COMTE ROBERT"]
["LES AMIS GYMNASTES D'AULNAY /BOIS","24093.331","AG AULNAY /BOIS","ILE DE FRANCE MARNE","SEINE SAINT DENIS","AULNAY SOUS BOIS"]
["CLUB GYMNIQUE DE NEUILLY SUR MARNE","24093.341","CG NEUILLY/MARNE","ILE DE FRANCE MARNE","SEINE SAINT DENIS","NEUILLY SUR MARNE"]
["STADE OLYMPIQUE DE ROSNY SOUS BOIS","24093.346","SO ROSNY SOUS BOIS","ILE DE FRANCE MARNE","SEINE SAINT DENIS","ROSNY SOUS BOIS"]
["ESPERANCE DE FONTENAY SOUS BOIS","24094.564","ESPERANCE FONTENAY","ILE DE FRANCE MARNE","VAL DE MARNE","FONTENAY SOUS BOIS"]
["CLUB SPORTIF ET ATHLETIQUE DU KREMLIN BICETRE","24094.567","CSA KREMLIN-BICETRE","ILE DE FRANCE MARNE","VAL DE MARNE","LE KREMLIN BICETRE"]
["GYM CLUB DU PERREUX","24094.584","GC LE PERREUX","ILE DE FRANCE MARNE","VAL DE MARNE","LE PERREUX"]
["BASTIA TEAM GYM","25020.022",null,"CORSE","CORSE","BASTIA"]
["FLAMBOYANT GYM CLUB","27990.002","FLAMBOYANT GYM CLUB","NOUVELLE CALEDONIE","NOUVELLE CALEDONIE","NOUMEA"]
["LICENCES INDIVIDUELLES FFG","40995.000","LICENCES INDIVIDUELLES","FFG","LICENCE INDIVIDUELLE FFG","PARIS"]

{"sheet":"liste","index":6,"n_rows":21,"n_cols":14,"rows_kept":21,"cut":false,"hidden":true,"merged":[]}
[]
["FédéralA",1,null,"Finale C","Junior",1]
["FédéralB",1,"Adulte","Finale B","Senior",2,null,"FédéralA","FédéralB","FédéralC","NationalA","NationalB","NationalC","Europe"]
["FédéralC",2,"Féminine","Finale C",null,3,null,"Adultes","Adultes","Unique","Junior ","Mix/Masc","Junior","Senior Féminine"]
["NationalA",2,"Masc/Mix","Finale D",null,4,null,"Mix/Masc","Mix/Masc",null,"Unique","Fem","Unique","Senior Masculine"]
["NationalB",2,"Unique",null,null,null,null,"Fem","Fem",null,null,"Junior",null,"Senior Mixte"]
["NationalC",3,null,null,null,null,null,"Unique","Unique",null,null,null,null,"Junior Féminine"]
["Europe",3,null,null,{"$f":"INDIRECT(A2)","v":{"$error":"#VALUE!"}},null,null,null,null,null,null,null,null,"Junior Masculine"]
[null,3,"Féminine",null,null,null,null,null,null,null,null,null,null,"Junior Mixte"]
[null,4,"Masculine"]
["Catégorie",5,"Mixte"]
["Découverte"]
["Evolution"]
["Détente"]
["Passion"]
[]
[]
[null,null,1]
[null,null,2]
[null,null,3]
[null,null,4]

{"sheet":"Activer Macro 97-2003","index":7,"n_rows":71,"n_cols":1,"rows_kept":71,"cut":false,"hidden":false,"merged":[]}
["pour activer les macros :"]
[]
["en résumé : menu Excel ->"]
["Outils > Macros > Sécurité > cocher niveau sécurité moyen"]
[]
["en images:"]
[]
[]
[]
[]
[]
[]
[]
[]
[]
[]
[]
[]
[]
[]
[]
[]
[]
[]
[]
[]
[]
[]
[]
[]
[]
[]
[]
[]
[]
[]
[]
[]
[-2]
[]
[]
[]
[]
[]
[]
[]
[]
[]
[]
[]
[]
[]
[]
[]
[]
[]
[]
[]
["(3) important : fermer le fichier, puis l'ouvrir à nouveau et cliquer \"Activer les Macros\" à la question suivante"]
[]
[]
[]
[]
[]
[]
[]
[]
["= mise en garde de Microsoft à ne pas négliger :"]
["Les macros peuvent contenir des virus. Il est généralement plus prudent de les désactiver. Toutefois, si elles proviennent d'une source sûre, le fait de les désactiver vous empêchera d'avoir accès à toutes les fonctionnalités. "]
[]
["les macros sont activées !"]

{"sheet":"Activer Macro2007","index":8,"n_rows":30,"n_cols":2,"rows_kept":30,"cut":false,"hidden":false,"merged":[]}
[]
[]
[]
[]
[]
[]
[]
[]
[]
[]
[]
[]
[]
[]
[]
[]
[]
[]
[]
[]
[]
[]
[]
[]
[]
[]
[]
[]
[]
[null,"fermer le fichier, puis l'ouvrir à nouveau "]

{"sheet":"Explications","index":9,"n_rows":49,"n_cols":4,"rows_kept":49,"cut":false,"hidden":false,"merged":[[41,1,41,10],[43,1,43,10],[44,1,44,10],[25,1,25,10],[26,1,26,10],[29,1,29,10],[33,1,33,10],[34,1,34,10],[36,1,36,10],[24,1,24,10],[8,1,8,11],[9,1,9,10],[10,1,10,10],[12,1,12,10],[14,1,14,10],[16,1,16,10],[17,1,17,10],[19,1,19,10],[21,1,21,10],[22,1,22,10],[23,1,23,10],[1,3,2,9],[3,3,3,9],[5,1,5,10],[6,1,6,10],[7,1,7,11]]}
[]
[null,null,null,"FEUILLES DE DIFF - MODE D'EMPLOI"]
[]
[null,null,null,"V1.0"]
[]
[null,"Cet onglet permet de vous expliquer chaque étape de cet outil. "]
[null,"Comment activer les macros"]
[null,"Allez sur les onglets en fonction de votre version, ou regardez sur internet"]
[]
[null,"Explication des onglets"]
[]
[]
[]
[]
[]
[]
[]
[]
[]
[]
[]
[]
[]
[]
[]
[]
[]
[]
[]
[]
[]
[]
[]
[]
[]
[]
[]
[]
[]
[]
[]
[null,"Utilisation de MAV"]
[null,"N'enregistrez pas le fichier au format par défaut, forcez le au format excel (.xlsm per ex)"]
[]
[null,"Un problème  : responsablejugeteamgym@ffgym.fr"]
[null,"Une adresse de support a été créée afin de vous permettre d'envoyer les problèmes que vous rencontrerez:"]
[null,"Si vous rencontrez un problème envoyez un mail à cette adresse, en expliquant le problème que vous rencontrez, la saisie et les actions que vous avez effectuées. "]
[null,"Vous pouvez joindre aussi le fichier qui pose problème en précisant la version excel que vous utilisez."]
[null,"Plus vous serez explicite dans la description du problème, plus nous serons à même de vous aider."]

{"sheet":"Version","index":10,"n_rows":1,"n_cols":2,"rows_kept":1,"cut":false,"hidden":true,"merged":[]}
[2,"Ajout modif pour Fed C "]

{"sheet":"MessageErreurO365","index":11,"n_rows":15,"n_cols":2,"rows_kept":15,"cut":false,"hidden":false,"merged":[[12,0,12,3]]}
["Si vous voyez le message suivant : "]
[]
[]
[]
[]
[]
[]
[]
[]
[]
[]
[null,"Vous pouvez cliquer sur le lien pour plus d'explication : "]
["Actions à effectuer sur chaque ordiniateur "]
[null,"1 - Copiez toutes vos feuilles pour la compétition dans un répertoire ( qui lui-même peut contenir d'autres répertoires) :"]
[null,"2 - Suivre la procédure suivante :"]

{"sheet":"fiche engagement","index":12,"n_rows":18,"n_cols":8,"rows_kept":18,"cut":false,"hidden":false,"merged":[[10,0,10,1],[15,0,15,1],[15,2,15,4],[17,1,17,4],[12,2,14,4],[8,0,8,1],[0,0,0,5],[1,0,1,5],[2,0,2,5],[4,0,4,5],[6,0,6,1],[6,2,6,3],[3,0,3,5],[5,0,5,5]]}
["Fiche d'engagement Compétition TeamGym - SAISON 2023 - 2024 - V1.1 FEDC"]
["ENGAGEMENT EN LIGNE"]
["Remplir une feuille par équipe de compétition et remplissez toutes les cases."]
["Les cases grises sont des listes déroulantes."]
["Les cases bleues sont des zones de texte à compléter"]
["Les cases roses sont remplies automatiquement"]
["Help",null,"responsablejugeteamgym@ffgym.fr"]
[]
["Catégories:",null,"FédéralC","Finale:","FinaleA"]
[]
["Section:",null,"Unique","Equipe numéro :",1]
[]
[]
[]
["Nom de l'association :"]
["Code Informatique:",null,{"$f":"IF(H16=0,\" \",INDEX('FFGym Clubs'!C3:C325,H16))","v":" "},null,null,null,null,{"$f":"SUM(('FFGym Clubs'!A2:A325=$C$13)*('FFGym Clubs'!B2:B325))","v":0}]
[]
["Ville :",{"$f":"IF(H16=0,\" \",INDEX('FFGym Clubs'!D3:D325,'fiche engagement'!H16))","v":" "}]

{"sheet":"FED C - dif mini tramp","index":13,"n_rows":41,"n_cols":14,"rows_kept":41,"cut":false,"hidden":false,"merged":[[10,1,10,2],[0,1,0,2],[1,1,1,2],[2,1,2,2],[3,1,3,2],[4,1,4,2],[5,1,5,2],[6,1,6,2],[6,9,6,10],[7,1,7,2],[8,1,8,2],[9,1,9,2],[28,2,28,9],[11,1,11,2],[12,1,12,2],[12,9,12,10],[13,2,13,10],[15,2,15,9],[16,2,21,9],[24,2,24,6],[24,7,24,9],[25,2,25,9],[26,2,26,9],[27,2,27,9],[36,2,36,9],[37,2,37,9],[38,2,38,9],[39,2,39,9],[29,2,29,9],[30,2,30,9],[33,2,33,6],[33,7,33,9],[34,2,34,9],[35,2,35,9]]}
[null,"Difficulté",null,"Nat A","Nat B","Nat C","Fed A/C","Fed B",null,null,null,"Case option pour les series avant arriere"]
[null,"Saut pose de pieds + saut droit",null,null,null,null,null,null,null,null,null,1,2,2]
[null,"Roue/Rondade"]
[null,"Rondade",null,"0.5",1,11,null,null,null,null,null,{"$f":"'fiche engagement'!$C$9","v":"FédéralC"}]
[null,"Rondade demi -Pétrick",null,"0.7","1.2","1.2"]
[null,"Lune",null,1,"1.6","1.6"]
[null,"Lune vrille",null,"1.4",2,null,null,null,null,"Valorisation"]
[null,"Tsukahara",null,"1.6",null,null,null,null,"TOTAL","1/2 vrille",0.2]
[null,"Lune salto",null,"1.8",null,null,null,null,"DIFF","carpé",0.1]
[null,"Saut droit",null,null,null,null,1,"1.2",{"$f":"K23+K32+K41","v":0},"tendu",0.2]
[null,"Saut groupé",null,null,null,null,1,"1.5",null,"double",1]
[null,"Saut écart carpé",null,null,1,1,"1.3 (serré)","1.8 (serré)"]
[null,"Salto",null,1,"1.4","1.4","1.8",2,"Catégorie ",{"$f":"CONCATENATE('fiche engagement'!C9,\" \", 'fiche engagement'!C11,\" \", 'fiche engagement'!E9)","v":"FédéralC Unique FinaleA"}]
[null,"Equipe ",{"$f":"CONCATENATE(INDEX('FFGym Clubs'!D3:D325,'fiche engagement'!H16),\" - Equipe N°\",'fiche engagement'!E11)","v":"FRANCONVILLE - Equipe N°1"}]
[null,"1er Passage"]
["N°","Nom du gym",null,null,null,null,null,null,null,null,"Valeur"]
[1]
[2]
[3]
[4]
[5]
[6]
[null,null,null,null,null,null,null,null,null,"Moyenne du passage : ",{"$f":"ROUND(SUM(K17:K22)/6,1)","v":0}]
[null,"2ème Passage"]
["N°","Nom du gym",null,null,null,null,null,null,null,null,"Valeur"]
[1]
[2]
[3]
[4]
[5]
[6]
[null,null,null,null,null,null,null,null,null,"Moyenne du passage : ",{"$f":"IF(K26=\"\",0,ROUND(AVERAGE(K26:K28),1))","v":0}]
[null,"3ème Passage"]
["N°","Nom du gym",null,null,null,null,null,null,null,null,"Valeur"]
[1]
[2]
[3]
[4]
[5]
[6]
[null,null,null,null,null,null,null,null,null,null,{"$f":"IF(K35=\"\",0,ROUND(AVERAGE(K35:K37),1))","v":0}]

{"sheet":"Fed C - dif tumbling","index":14,"n_rows":41,"n_cols":14,"rows_kept":41,"cut":false,"hidden":false,"merged":[[5,1,5,2],[0,1,0,2],[1,1,1,2],[2,1,2,2],[3,1,3,2],[4,1,4,2],[6,1,6,2],[7,1,7,2],[8,1,8,2],[9,1,9,2],[10,1,10,2],[30,2,30,9],[11,9,11,10],[12,1,12,2],[13,2,13,10],[15,2,15,9],[16,2,21,9],[22,2,22,9],[11,1,11,2],[25,2,25,9],[26,2,26,9],[27,2,27,9],[28,2,28,9],[29,2,29,9],[39,2,39,9],[40,2,40,9],[31,2,31,9],[34,2,34,9],[35,2,35,9],[36,2,36,9],[37,2,37,9],[38,2,38,9]]}
[null,"Difficultés",null,"Nat A","Nat B","Nat C","Fed A/C","Fed B",null,null,null,"Case option pour les series avant arriere"]
["Av","Roulade avant",null,null,null,null,"0.3","0.5",null,null,null,2,1,2]
["Avt \nArr","Roue",null,null,"0.5","0.5","0.5",1]
["Arr","Roue pied pied",null,null,"0.5","0.5","0.5",1,null,null,null,{"$f":"'fiche engagement'!C9","v":"FédéralC"}]
["Arr","Rondade",null,null,"0.5","0.5",1,"1.5"]
["Avt","Saut de mains",null,"0.3",1,1,"1.5",2,null,"1/2 vrille",0.2]
["Avt","Saut de mains un pied",null,"0.3",1,1,"1.5",2,"TOTAL","carpé",0.1]
["Avt","Flip avant",null,"0.7","1.2","1.2",null,null,"DIFF","tendu",0.2]
["Arr","Flip arrière",null,"0.3",1,1,"1.5",2,{"$f":"(K23+K32+K41)","v":0},"double",1]
["Avt","Salto en avant",null,1,"1.4","1.4",2,null,null,"Salto salto",0.2]
["Arr","Salto en arrière",null,1,"1.4","1.4",2,null,null,"salto au départ",0.1]
["Avt","Saut de mains Salto",null,"1.2","1.6","1.6",null,null,"Catégorie:",{"$f":"CONCATENATE('fiche engagement'!C9,\" \", 'fiche engagement'!C11,\" \", 'fiche engagement'!E9)","v":"FédéralC Unique FinaleA"}]
["Avt","Flip avant Salto",null,"1.4","1.8"]
[null,"Equipe",{"$f":"CONCATENATE(INDEX('FFGym Clubs'!D3:D325,'fiche engagement'!H16),\" - Equipe N°\",'fiche engagement'!E11)","v":"FRANCONVILLE - Equipe N°1"}]
[null,"1er Passage"]
["N°","Nom du gym",null,null,null,null,null,null,null,null,"Valeur"]
[1]
[2]
[3]
[4]
[5]
[6]
[null,null,"Moyenne du passage : ",null,null,null,null,null,null,null,{"$f":"ROUND(SUM(K17:K19)/3,1)","v":0}]
[null,"2ème Passage"]
["N°","Nom du gym",null,null,null,null,null,null,null,null,"Valeur"]
[1]
[2]
[3]
[4]
[5]
[6]
[null,null,"Moyenne du passage : ",null,null,null,null,null,null,null,{"$f":"IF(K26<>\"\",ROUND(AVERAGE(K26:K28),1),0)","v":0}]
[null,"3ème Passage"]
["N°","Nom du gym",null,null,null,null,null,null,null,null,"Valeur"]
[1]
[2]
[3]
[4]
[5]
[6]
[null,null,"Moyenne du passage : ",null,null,null,null,null,null,null,{"$f":"IF(K35<>\"\",ROUND(AVERAGE(K35:K37),1),0)","v":0}]